Workbook

Sheet EV calcs
E1: FE Label MPG Calculations For Electric Vehicles
A3: Please Enter: | D3: (Uses 2017 and later model year derived 5-cycle coefficients (for reference calculations only) from EPA Guidance letter CD-15-15, June 22, 2015)
A4: Model Year: | C4: 2024
A5: Manufacturer Name: | C5: xxxxxxx | F5: Values in Yellow fill are used on FE Labels (window stickers)
A6: Model Name | C6: yyyyyyyy | L6: T. Rojeck | N6: February 27, 2023
A7: Test Date: | C7: xx/yy/2023
K8: Enter the EPA approved 5-cycle Adjustment Factor per SAE J1634 (July 2017): | L8: 0.72004 | M8: <-------- (round to 5 decimal places);
K9: (Enter 0.70 if not using the SAE J1634 5-cycle method) | M9: (Orange background = too many decimal places)
A11: I. Calculate Electric vehicle FE Label city, Hwy, Combined FE values using the SAE J1634 5-cycle Adjustment Factor or the 0.7 Adjustment Factor:
B13: Enter unadjusted kW-hr/100mi Values (in red text blocks) rounded to 5 decimal places as determined from SAE J1634:
D14: -----Unadjusted Values-----
D15: City | E15: Highway | F15: Combined | K15: -----Adjusted Values-----
D16: (round mpg to 0.1mpg) | E16: (round mpg to 0.1mpg) | F16: Calculated unadjusted combined | G16: Units | K16: City | L16: Hwy | M16: Combined | N16: Units
J17: Calculate derived 5-cycle mpg: | K17: =astm((1/((B42)+(B43/D19))), 1) -> 95.1 | L17: =astm((1/((B44)+(B45/E19))), 1) -> 80.8 | M17: =astm((1/((0.55/K17)+(0.45/L17))), 1) -> 88.1 | N17: mpg | O17: for EPA (reference only)
B18: Elect veh FE | C18: unadjusted kW-hr/100 mi* | D18: 18.6705 | E18: 23.9063 | F18: =(0.55*D18+0.45*E18) -> 21.02661 | G18: kW-hr/100 mi | J18: convert back to kW-hr/100 mi: | K18: =astm((0.1*A50/K17), 1) -> 35.4 | L18: =astm((0.1*A50/L17), 1) -> 41.7 | M18: =ROUND((0.1*A50/M17), 1) -> 38.3 | N18: kW-hr/100 mi - Derived 5-cycle (EPA--for reference only)
B19: Elect veh FE | C19: converted to mpg | D19: =astm((A50/(10*D18)),1) -> 180.5 | E19: =astm((A50/(10*E18)),1) -> 141 | F19: =astm((1/((0.55/D19)+(0.45/E19))), 4) -> 160.2929 | G19: mpg | J19: Percent adjustment mpg: | K19: =(D19-K17)/D19 -> 0.4731301939 | L19: =(E19-L17)/E19 -> 0.4269503546 | M19: =(F19-M17)/F19 -> 0.450381146 | N19: percent | O19: for EPA (reference only)
C20: *Round Input kW-hr/100 mi values to 5 decimal places | J20: MPG w/SAE J1634 (5-cycle) or 0.7 Adjustment Factor: | K20: =L8*D19 -> 129.96722 | L20: =L8*E19 -> 101.52564 | M20: =L8*F19 -> 115.4172997 | N20: MPGe (5-cycle method)
C21: (Orange background = too many decimal places) | J21: convert back to kW-hr/100 mi: | K21: =astm((0.1*A50/K20), 4) -> 25.9335 | L21: =astm((0.1*A50/L20), 4) -> 33.1985 | M21: =astm((0.1*A50/M20), 4) -> 29.2027 | N21: kW-hr/100 mi (5-cycle method)
J23: 2024MY Label Values:
J24: Rounded MPG Using SAE J1634 (5-cycle) or 0.7 Adjustment Factor: | K24: =astm(K20,0) -> 130 | L24: 102 | M24: 115
J25: Rounded kW-hr/100 mi Using SAE J1634 (5-cycle) or 0.7 Adjustment Factor: | K25: 26 | L25: 33 | M25: 29
A28: II. Calculate the adjusted electric vehicle driving ranges using the SAE J1634 5-cycle Adjustment Factor or the 0.7 Adjustment Factor:
B30: Enter unadjusted City & Hwy Range Values in miles (in red text blocks) rounded to 3 decimal places as determined from SAE J1634:
D32: City Range | E32: Hwy Range | F32: Combined Range | G32: Rounded Range | H32: Units | J32: Method:
A33: Calculate unadjusted combined driving range*: | D33: 311.293 | E33: 289.42 | F33: =0.55*D33+0.45*E33 -> 301.45015 | G33: =astm(F33,0) -> 301 | H33: miles | J33: Unadjusted (SAE J1634)
A34: Calculate adjusted driving range (2017 D5C method, No Cap): | D34: =D33*(1-K19) -> 164.0108825 | E34: =E33*(1-L19) -> 165.8520284 | F34: =F33*(1-M19) -> 165.682686 | G34: =astm(F34,0) -> 166 | H34: miles | J34: Adjusted driving range (derived 5-cycle method, No Cap) calculated for reference only
A35: Calculate adjusted driving range (5-cycle or 0.7 Adj Factor): | D35: =D33*L8 -> 224.1434117 | E35: =E33*L8 -> 208.3939768 | F35: =F33*L8 -> 217.056166 | G35: =astm(F35,0) -> 217 | H35: miles | J35: (Adjusted driving range using 5-cycle or 0.7 Adjustment Factor)
C36: *Round input city and hwy range values to 3 decimal places
C37: (Orange background = too many decimal places)
D39: III. Calculate Electric vehicle annual fuel cost and 5-year savings, per 40 CFR 600.311-12(e)
A40: 2017 and later model year MPG Factors:
A41: ref. 40 CFR 600.210-08 and CD-15-15 (June 22, 2015) | G41: Enter Average 2024MY 5-year Fuel Cost: | H41: 9750 | J41: (Whole number)
A42: City Intercept: | B42: 0.004091 | G42: Enter 2024MY U.S. average electricity cost: | H42: 0.15 | I42: per kw-hr | J42: (2 decimal places)
A43: City Slope: | B43: 1.1601 | E43: (from CD-2022-16 for 2024 model year)
A44: Hwy Intercept: | B44: 0.003191 | D44: Calculate unrounded adjusted combined miles/kw-hr: | H44: =100/M21 -> 3.4243409 | I44: mi/kw-hr | M44: 2024 Label | O44: 2024 Label
A45: Hwy Slope: | B45: 1.2945 | M45: Rounded | O45: 5-year
H46: Unrounded | M46: Annual | O46: Amount
A47: Petroleum Equivalency Factor for FE Labels; | E47: Annual Miles | F47: Cost | G47: Units | H47: Annual Fuel Cost* | J47: Method | M47: Fuel Cost** | O47: You Save**
A48: ref. 40 CFR 600.002 "Gasoline gallon equivalent" definition | E48: 15000 | F48: =H42 -> 0.15 | G48: per kw-hr | H48: =150*F48*M18 -> 861.75 | J48: (current derived 5-cycle, mpg-based, No Cap) | M48: =astm(H48/50,0) *50 -> 850 | O48: =$H$41 - 5*M48 -> 5500
E49: 15000 | F49: =H42 -> 0.15 | G49: per kw-hr | H49: =15000*F49/H44 -> 657.06075 | J49: (Using SAE J1634 5-cycle or 0.7 Adjustment Factor) | M49: =astm(H49/50,0) *50 -> 650 | O49: =$H$41 - 5*M49 -> 6500
A50: 33705 | B50: watt-hr/gallon
G51: *Note: Annual fuel costs should be ASTM rounded to the nearest $50. | L51: **Note: These values are used on the window stickers.
L52: (They may be different from the www.fueleconomy.gov values,
L53: because www.fueleconomy.gov uses a floating fuel cost).

Sheet EV calcs voluntarily lowered
C1: FE Label MPG Calculations For Electric Vehicles (with Voluntarily lowered/increased values)
A3: Please Enter: | D3: (Uses 2017 and later model year derived 5-cycle coefficients (for reference calculations only) from EPA Guidance letter CD-15-15, June 22, 2015)
A4: Model Year: | C4: 2024
A5: Manufacturer Name: | C5: xxxxxxx | F5: Values in Yellow fill are normally used on FE Labels (window stickers)
A6: Model Name | C6: yyyyyyyy | F6: Values in Blue fill are voluntarily decreased/increased values | L6: T. Rojeck | N6: February 27, 2023
A7: Test Date: | C7: xx/yy/2023
K8: Enter the EPA approved 5-cycle Adjustment Factor per SAE J1634 (July 2017): | L8: 0.72004 | M8: <-------- (round to 5 decimal places);
K9: (Enter 0.70 if not using the SAE J1634 5-cycle method) | M9: (Orange background = too many decimal places)
A11: I. Calculate Electric vehicle FE Label city, Hwy, Combined FE values using the SAE J1634 5-cycle Adjustment Factor or the 0.7 Adjustment Factor:
B13: Enter unadjusted kW-hr/100mi Values (in red text blocks) rounded to 5 decimal places as determined from SAE J1634:
D14: -----Unadjusted Values-----
D15: City | E15: Highway | F15: Combined | K15: -----Adjusted Values-----
D16: (round mpg to 0.1mpg) | E16: (round mpg to 0.1mpg) | F16: Calculated unadjusted combined | G16: Units | K16: City | L16: Hwy | M16: Combined | N16: Units
J17: Calculate derived 5-cycle mpg: | K17: =astm((1/((B45)+(B46/D19))), 1) -> 95.1 | L17: =astm((1/((B47)+(B48/E19))), 1) -> 80.8 | M17: =astm((1/((0.55/K17)+(0.45/L17))), 1) -> 88.1 | N17: mpg | O17: for EPA (reference only)
B18: Elect veh FE | C18: unrounded kW-hr/100 mi* | D18: 18.6705 | E18: 23.9063 | F18: =(0.55*D18+0.45*E18) -> 21.02661 | G18: kW-hr/100 mi | J18: convert back to kW-hr/100 mi: | K18: =astm((0.1*A53/K17), 1) -> 35.4 | L18: =astm((0.1*A53/L17), 1) -> 41.7 | M18: =ROUND((0.1*A53/M17), 1) -> 38.3 | N18: kW-hr/100 mi - Derived 5-cycle (EPA--for reference only)
B19: Elect veh FE | C19: converted to mpg | D19: =astm((A53/(10*D18)),1) -> 180.5 | E19: =astm((A53/(10*E18)),1) -> 141 | F19: =astm((1/((0.55/D19)+(0.45/E19))), 4) -> 160.2929 | G19: mpg | J19: Percent adjustment (D5C) mpg: | K19: =(D19-K17)/D19 -> 0.4731301939 | L19: =(E19-L17)/E19 -> 0.4269503546 | M19: =(F19-M17)/F19 -> 0.450381146 | N19: percent | O19: for EPA (reference only)
C20: *Round to Input kW-hr/100 mi values to 5 decimal places | J20: MPG w/SAE J1634 (5-cycle) or 0.7 Adjustment Factor: | K20: =L8*D19 -> 129.96722 | L20: =L8*E19 -> 101.52564 | M20: =L8*F19 -> 115.4172997 | N20: MPG (5-cycle method)
C21: (Orange background = too many decimal places) | J21: convert back to kW-hr/100 mi: | K21: =astm((0.1*A53/K20), 4) -> 25.9335 | L21: =astm((0.1*$A$53/$L$20), 4) -> 33.1985 | M21: =astm((0.1*$A$53/$M$20), 4) -> 29.2027 | N21: kW-hr/100 mi (5-cycle method)
J23: 2024MY Label Values:
J24: Rounded MPG Using SAE J1634 (5-cycle) or 0.7 Adjustment Factor: | K24: =astm(K20,0) -> 130 | L24: 102 | M24: =astm(M20,0) -> 115
J25: Rounded kW-hr/100 mi Using SAE J1634 (5-cycle) or 0.7 Adjustment Factor: | K25: 26 | L25: 33 | M25: 29
J26: Voluntarily Reduced MPG values shown on Label -------------------------> | K26: =IF(M26="","",astm(L8*D19*M26/M20,0)) -> 113 | L26: =IF(M26="","",astm(L8*E19*M26/M20,0)) -> 88 | M26: 100 | N26: <-------- Enter only voluntarily reduced combined MPG (or leave blank);
J27: Voluntarily Increased kW-hr/100 mi values -------------------------> | K27: =IF(M26="","",astm((A53*0.1)/astm((L8*D19*M26/M20),4),0)) -> 30 | L27: =IF(M26="","",astm((A53*0.1)/astm((L8*E19*M26/M20),4),0)) -> 38 | M27: =IF(M26="","",astm((A53*0.1)/astm((L8*F19*M26/M20),4),0)) -> 34 | N27: (other values are automatically calculated)
A30: II. Calculate the adjusted electric vehicle driving ranges using the SAE J1634 5-cycle Adjustment Factor or the 0.7 Adjustment Factor:
B32: Enter unadjusted City & Hwy Range Values in miles (in red text blocks) as determined from SAE J1634:
D34: City Range | E34: Hwy Range | F34: Combined Range | G34: Rounded Range | H34: Units | J34: Method:
A35: Calculate unadjusted combined driving range*: | D35: 311.293 | E35: 289.42 | F35: =0.55*D35+0.45*E35 -> 301.45015 | G35: =astm(F35,0) -> 301 | H35: miles | J35: Unadjusted (SAE J1634)
A36: Calculate adjusted driving range (2017 D5C method, No Cap): | D36: =D35*(1-K19) -> 164.0108825 | E36: =E35*(1-L19) -> 165.8520284 | F36: =F35*(1-M19) -> 165.682686 | G36: =astm(F36,0) -> 166 | H36: miles | J36: Adjusted driving range (derived 5-cycle method, No Cap) calculated for reference only
A37: Calculate adjusted driving range (5-cycle or 0.7 Adj Factor): | D37: =D35*L8 -> 224.1434117 | E37: =E35*L8 -> 208.3939768 | F37: =F35*L8 -> 217.056166 | G37: =astm(F37,0) -> 217 | H37: miles | J37: (Adjusted driving range using 5-cycle or 0.7 Adjustment Factor)
D38: =D37*F38/F37 -> 206.5303335 | E38: =E37*F38/F37 -> 192.0184813 | F38: =G38 -> 200 | G38: 200 | H38: miles | I38: <------------------------Enter Voluntary Reduced (Combined) Range Value shown on label
C39: *Round input city and hwy range values to 3 decimal places
C40: (Orange background = too many decimal places)
D42: III. Calculate Electric vehicle annual fuel cost and 5-year savings, per 40 CFR 600.311-12(e)
A43: 2017 and later model year MPG Factors:
A44: ref. 40 CFR 600.210-08 and CD-15-15 (June 22, 2015) | G44: Enter Average 2024MY 5-year Fuel Cost: | H44: 9750 | J44: (Whole number)
A45: City Intercept: | B45: 0.004091 | G45: Enter 2024MY U.S. average electricity cost: | H45: 0.15 | I45: per kw-hr | J45: (2 decimal places)
A46: City Slope: | B46: 1.1601 | E46: (from CD-2022-16 for 2024 model year)
A47: Hwy Intercept: | B47: 0.003191 | D47: Calculate unrounded adjusted combined miles/kw-hr: | H47: =IF(M26="", 100/M21,100/ M27) -> 2.941176471 | I47: mi/kw-hr | M47: 2024 Label | O47: 2024 Label
A48: Hwy Slope: | B48: 1.2945 | M48: Rounded | O48: 5-year
H49: Unrounded | M49: Annual | O49: Amount
A50: Petroleum Equivalency Factor for FE Labels; | E50: Annual Miles | F50: Cost | G50: Units | H50: Annual Fuel Cost* | J50: Method | M50: Fuel Cost | O50: You Save:
A51: ref. 40 CFR 600.002 "Gasoline gallon equivalent" definition | E51: 15000 | F51: =H45 -> 0.15 | G51: per kw-hr | H51: =150*F51*M18 -> 861.75 | J51: Derived 5-cycle method, No Cap (for reference only) | M51: =astm(H51/50,0) *50 -> 850 | O51: =$H$44 - 5*M51 -> 5500
E52: 15000 | F52: =H45 -> 0.15 | G52: per kw-hr | H52: =15000*F52/H47 -> 765 | J52: (Using SAE J1634 5-cycle or 0.7 Adjustment Factor) | M52: =astm(H52/50,0) *50 -> 750 | O52: =$H$44 - 5*M52 -> 6000
A53: 33705 | B53: watt-hr/gallon
G54: *Note: Annual fuel costs should be ASTM rounded to the nearest $50. | L54: **Note: These values are used on the window stickers.
L55: (They may be different from the www.fueleconomy.gov values,
L56: because www.fueleconomy.gov uses a floating fuel cost).
